bitfinex-derivatives/quotes_BNBF0:USTF0_20250708
["timestamp","ask_amount","ask_price","bid_price","bid_amount"]
[1751981272254,1.69787009,661.21,660.69,1.261]
[1751981273259,1.69787009,661.19,660.69,1.261]
[1751981276861,1.69787009,661.18,660.69,1.261]
[1751981277763,1.69787009,661.17,660.69,1.261]
[1751981278963,1.69787009,661.16,660.69,1.261]
[1751981286562,1.69787009,661.18,660.69,1.261]
[1751981289472,1.69787009,661.19,660.69,1.261]
[1751981292373,1.69787009,661.18,660.69,1.261]
[1751981295275,1.69787009,661.17,660.69,1.261]
[1751981296278,1.69787009,661.16,660.69,1.261]
[1751981296475,0.26323752,661.3,660.69,1.261]
[1751981296476,1.69787009,661.15,660.69,1.261]
[1751981297677,0.26323752,661.3,660.69,1.261]
[1751981297678,1.69787009,661.16,660.69,1.261]
[1751981298082,1.69787009,661.15,660.69,1.261]
[1751981298279,1.69787009,661.16,660.69,1.261]
[1751981298678,1.69787009,661.15,660.69,1.261]
[1751981300280,1.69787009,661.14,660.69,1.261]
[1751981300882,1.69787009,661.14,660.65,1.69506845]
[1751981303285,1.69787009,661.14,660.66,1.676]
[1751981303986,1.69787009,661.14,660.66,3.37106845]
[1751981305189,1.69787009,661.13,660.66,3.37106845]
[1751981305385,1.69787009,661.15,660.66,1.676]
[1751981307685,1.69787009,661.14,660.66,1.676]
[1751981308087,1.69787009,661.13,660.66,3.37106845]
[1751981310288,1.69787009,661.13,660.67,1.69506845]
[1751981311293,1.69787009,661.12,660.67,1.69506845]
[1751981314095,1.69787009,661.13,660.66,3.37106845]
[1751981314395,1.69787009,661.12,660.67,1.69506845]
[1751981315393,1.69787009,661.11,660.68,1.69506845]
[1751981315594,1.69787009,661.12,660.67,1.69506845]
[1751981316292,1.69787009,661.11,660.68,1.69506845]
[1751981317096,1.69787009,661.11,660.69,1.69506845]
[1751981318198,1.69787009,661.12,660.7,1.452]
[1751981318398,1.69787009,661.11,660.7,1.452]
[1751981320899,1.69787009,661.1,660.7,1.452]
[1751981321303,1.69787009,661.11,660.7,1.452]
[1751981323105,1.69787009,661.12,660.7,1.452]
[1751981324005,1.69787009,661.11,660.7,1.452]
[1751981325302,1.69787009,661.12,660.7,1.452]
[1751981325502,1.69787009,661.11,660.7,1.452]
[1751981326000,2.26749517,661.26,660.7,1.452]
[1751981326001,1.69787009,661.12,660.7,1.452]
[1751981331703,1.69787009,661.11,660.7,1.452]
[1751981333010,1.69787009,661.1,660.7,1.452]
[1751981335112,1.69787009,661.09,660.7,3.14706845]
[1751981335914,1.69787009,661.08,660.72,1.69506845]
[1751981338129,1.69787009,661.08,660.73,1.69506845]
[1751981338428,1.69787009,661.07,660.73,1.69506845]
[1751981340025,1.69787009,661.07,660.74,1.69506845]
[1751981343023,1.69787009,661.07,660.73,1.69506845]
[1751981343229,1.69787009,661.08,660.73,1.69506845]
[1751981345129,1.69787009,661.07,660.73,1.69506845]
[1751981348527,1.69787009,661.07,660.74,1.69506845]
[1751981348727,1.69787009,661.07,660.73,1.69506845]
[1751981350030,1.69787009,661.07,660.74,1.69506845]
[1751981352730,1.69787009,661.07,660.75,1.69506845]
[1751981354325,1.69787009,661.06,660.74,1.69506845]
[1751981354526,1.69787009,661.07,660.75,1.69506845]
[1751981358034,1.69787009,661.07,660.74,1.69506845]
[1751981359037,1.69787009,661.1,660.7,3.14706845]
[1751981359738,1.69787009,661.1,660.7,1.452]
[1751981360636,1.69787009,661.13,660.7,1.452]
[1751981361333,1.69787009,661.14,660.7,1.452]
[1751981369147,1.69787009,661.14,660.65,1.69506845]
[1751981370445,1.69787009,661.09,660.72,1.69506845]
[1751981372249,1.69787009,661.09,660.73,1.478]
[1751981375353,1.69787009,661.1,660.73,1.478]
[1751981376653,1.69787009,661.09,660.73,3.17306845]
[1751981378459,1.69787009,661.1,660.73,1.478]
[1751981378958,1.69787009,661.09,660.73,1.478]
[1751981379960,1.69787009,661.1,660.73,1.478]
[1751981381157,1.69787009,661.12,660.73,1.478]
[1751981382256,1.69787009,661.13,660.73,1.478]
[1751981382660,0.99438937,661.15,660.73,1.478]
[1751981382661,1.69787009,661.12,660.73,1.478]
[1751981385362,1.69787009,661.11,660.73,1.478]
[1751981386861,1.69787009,661.12,660.73,1.478]
[1751981390168,0.26330723,661.1,660.73,1.478]
[1751981391063,1.96117732,661.1,660.73,1.478]
[1751981391567,0.26330723,661.1,660.73,1.478]
[1751981400276,1.96117732,661.1,660.73,1.478]
[1751981401584,1.69787009,661.08,660.73,3.17306845]
[1751981402685,1.69787009,661.09,660.73,3.17306845]
[1751981403282,1.69787009,661.08,660.74,1.69506845]
[1751981405088,1.69787009,661.08,660.75,1.69506845]
[1751981406087,1.69787009,661.07,660.75,1.69506845]
[1751981406387,1.69787009,661.08,660.75,1.69506845]
[1751981406791,1.69787009,661.07,660.75,1.69506845]
[1751981410690,1.69787009,661.09,660.73,1.478]
[1751981415294,1.96117732,661.1,660.73,1.478]
[1751981420293,1.96117732,661.1,660.71,1.69506845]
[1751981420696,1.69787009,661.08,660.74,1.69506845]
[1751981423103,0.26330723,661.1,660.74,1.69506845]
[1751981423104,1.69787009,661.07,660.74,1.69506845]
[1751981423602,1.69787009,661.07,660.75,1.336]
[1751981424202,1.69787009,661.07,660.75,3.03106845]
[1751981424405,1.69787009,661.07,660.75,1.336]
[1751981424903,1.69787009,661.08,660.75,1.336]
[1751981426003,1.69787009,661.07,660.75,3.03106845]
[1751981426306,1.69787009,661.09,660.75,1.336]
[1751981427306,1.96117732,661.1,660.75,1.336]
[1751981427907,1.69787009,661.09,660.75,1.336]
[1751981428107,0.26330723,661.1,660.75,1.336]
[1751981429010,1.96117732,661.1,660.75,1.336]
[1751981429310,1.69787009,661.04,660.75,1.336]
[1751981429704,1.69787009,661.01,660.75,1.336]
[1751981431422,1.69787009,661.09,660.75,1.336]
[1751981431713,1.69787009,661.03,660.75,1.336]
[1751981432120,1.69787009,660.98,660.75,1.336]
[1751981432613,1.69787009,660.99,660.75,1.336]
[1751981432914,1.69787009,661.0,660.75,1.336]
[1751981433413,1.69787009,661.01,660.75,1.336]
[1751981433608,1.69787009,661.0,660.75,1.336]
[1751981434312,1.69787009,661.01,660.75,1.336]
[1751981435414,1.69787009,661.02,660.75,1.336]
[1751981436415,1.69787009,661.03,660.75,1.336]
[1751981438412,1.69787009,661.04,660.75,1.336]
[1751981438608,1.69787009,661.04,660.48,1.69506845]
[1751981439211,1.69787009,661.02,660.51,1.69506845]
[1751981439413,1.69787009,661.02,660.5,1.69506845]
[1751981440411,1.69787009,661.04,660.48,1.69506845]
[1751981440609,1.69787009,661.05,660.46,1.69506845]
[1751981442015,1.69787009,661.05,660.47,1.912]
[1751981443112,1.69787009,661.06,660.47,1.912]
[1751981443714,1.69787009,661.05,660.47,3.60706845]
[1751981444413,1.69787009,661.05,660.47,1.912]
[1751981446317,1.69787009,661.07,660.47,1.912]
[1751981449322,1.69787009,661.08,660.47,1.912]
[1751981449925,1.69787009,661.07,660.47,1.912]
[1751981450122,1.69787009,661.08,660.47,1.912]
[1751981451122,1.69787009,661.07,660.47,1.912]
[1751981451420,1.69787009,661.08,660.47,1.912]
[1751981454624,1.96117732,661.1,660.47,1.912]
[1751981456125,1.69787009,661.09,660.47,1.912]
[1751981457732,1.69787009,661.08,660.47,1.912]
[1751981462338,1.69787009,661.07,660.47,1.912]
[1751981462934,1.69787009,661.06,660.47,1.912]
[1751981463134,1.69787009,661.07,660.47,1.912]
[1751981463435,1.69787009,661.03,660.47,1.912]
[1751981463638,1.69787009,661.02,660.47,1.912]
[1751981463833,1.69787009,661.03,660.47,1.912]
[1751981464236,1.69787009,661.01,660.47,1.912]
[1751981464640,1.69787009,660.97,660.47,1.912]
[1751981466335,1.69787009,660.98,660.47,1.912]
[1751981467341,1.69787009,660.97,660.47,1.912]
[1751981468042,1.69787009,660.98,660.47,1.912]
[1751981468243,1.69787009,660.99,660.47,1.912]
[1751981468543,1.69787009,660.98,660.47,1.912]
[1751981473245,1.69787009,660.99,660.47,1.912]
[1751981473449,1.69787009,660.98,660.47,1.912]
[1751981474445,1.69787009,660.99,660.47,1.912]
[1751981475948,1.69787009,660.98,660.47,1.912]
[1751981476246,1.69787009,660.99,660.47,1.912]
[1751981476450,1.69787009,660.98,660.47,1.912]
[1751981477252,1.69787009,660.99,660.47,1.912]
[1751981477452,1.69787009,660.98,660.47,1.912]
[1751981477851,1.69787009,660.97,660.47,1.912]
[1751981478049,1.69787009,660.96,660.47,1.912]
[1751981478649,1.69787009,660.95,660.47,1.912]
[1751981479253,1.69787009,660.96,660.47,1.912]
[1751981479552,1.69787009,660.95,660.47,1.912]
[1751981481354,1.69787009,660.94,660.47,1.912]
[1751981482150,1.69694673,660.94,660.47,1.912]
[1751981482954,1.69694673,660.93,660.47,1.912]
[1751981483151,1.69694673,660.94,660.47,1.912]
[1751981483452,1.69694673,660.93,660.47,1.912]
[1751981483952,1.69694673,660.95,660.47,1.912]
[1751981484155,1.69694673,660.97,660.47,1.912]
[1751981484452,1.69694673,660.96,660.47,1.912]
[1751981485958,1.69694673,660.95,660.47,1.912]
[1751981486456,1.69694673,660.94,660.47,1.912]
[1751981487366,1.69694673,660.93,660.47,1.912]
[1751981487754,0.99060338,661.06,660.47,1.912]
[1751981487956,1.69817155,660.94,660.47,1.912]
[1751981488155,1.69817155,660.89,660.47,1.912]
[1751981488357,1.69817155,660.88,660.47,1.912]
[1751981492968,1.69817155,660.89,660.47,1.912]
[1751981493168,1.69817155,660.87,660.47,1.912]
[1751981493675,1.69817155,660.88,660.47,1.912]
[1751981494970,1.69817155,660.88,660.31,1.69856482]
[1751981497867,1.69817155,660.87,660.32,1.69856482]
[1751981498772,1.69817155,660.87,660.33,1.259]
[1751981499269,1.69817155,660.88,660.33,1.259]
[1751981500471,1.69817155,660.87,660.33,1.259]
[1751981501469,1.69817155,660.87,660.33,2.95756482]
[1751981501672,1.69817155,660.87,660.33,1.259]
[1751981502869,1.69817155,660.87,660.33,2.95756482]
[1751981503174,1.69817155,660.86,660.34,1.69856482]
[1751981503574,1.69817155,660.85,660.35,1.69856482]
[1751981504874,1.69817155,660.86,660.34,1.69856482]
[1751981505575,1.69817155,660.86,660.33,2.95756482]
[1751981505972,1.69817155,660.87,660.33,1.259]
[1751981507072,1.69817155,660.88,660.33,1.259]
[1751981507473,1.69817155,660.93,660.37,1.69856482]
[1751981510379,1.69817155,660.92,660.38,1.69856482]
[1751981510579,1.69817155,660.91,660.38,1.69856482]
[1751981511877,1.69817155,660.91,660.39,1.69856482]
[1751981512589,1.69817155,660.92,660.4,1.69856482]
[1751981513079,1.69817155,660.91,660.41,1.69856482]
[1751981513982,1.69817155,660.91,660.42,1.69856482]
[1751981514481,1.69817155,660.9,660.42,1.69856482]
[1751981515782,1.69817155,660.89,660.43,1.69856482]
[1751981516386,1.69817155,660.88,660.43,1.69856482]
[1751981517287,1.69817155,660.89,660.44,1.69856482]
[1751981517597,1.69817155,660.88,660.44,1.69856482]
[1751981518486,3.40124276,661.09,660.44,1.69856482]
[1751981518487,1.69817155,660.87,660.44,1.69856482]
[1751981520683,0.99131772,660.96,660.33,3.52783221]
[1751981520684,1.69817155,660.86,660.43,1.69856482]
[1751981521583,1.69817155,660.86,660.44,1.69856482]
[1751981522488,1.69817155,660.86,660.45,1.69856482]
[1751981523290,1.69817155,660.85,660.45,1.69856482]
[1751981524492,1.69817155,660.87,660.42,1.69856482]
[1751981525192,1.69817155,660.88,660.42,1.69856482]
[1751981526688,1.69817155,660.9,660.38,1.69856482]
[1751981526888,1.69817155,660.88,660.36,1.69856482]
[1751981532302,1.69817155,660.88,660.37,1.69856482]
[1751981532602,1.69817155,660.87,660.37,1.69856482]
[1751981534198,1.69817155,660.86,660.39,1.69856482]
[1751981534900,1.69817155,660.84,660.43,1.69856482]
[1751981535621,1.69817155,660.84,660.42,1.69856482]
[1751981538205,1.69817155,660.84,660.43,1.69856482]
[1751981539102,1.69817155,660.84,660.42,1.69856482]
[1751981540304,1.69817155,660.83,660.43,1.69856482]
[1751981540505,1.69817155,660.83,660.44,1.69856482]
[1751981541208,1.69817155,660.83,660.43,1.69856482]
[1751981541604,1.69817155,660.85,660.41,1.69856482]
[1751981542207,1.69817155,660.83,660.39,1.69856482]
[1751981544009,1.69817155,660.83,660.4,1.832]
[1751981544811,1.69817155,660.82,660.4,1.832]
[1751981545409,1.69817155,660.82,660.4,3.53056482]
[1751981546913,1.69817155,660.82,660.4,1.832]
[1751981547213,1.69817155,660.82,660.4,3.53056482]
[1751981548111,1.69817155,660.82,660.4,1.832]
[1751981549310,3.40124276,661.07,660.4,1.832]
[1751981549311,1.69817155,660.9,660.4,1.832]
[1751981552119,1.69817155,660.88,660.4,1.832]
[1751981558117,0.26330723,661.1,660.4,1.832]
[1751981558118,1.69817155,660.8,660.4,1.832]
[1751981561728,1.69817155,660.79,660.4,1.832]
[1751981563126,1.69817155,660.79,660.4,3.53056482]
[1751981563322,1.69817155,660.79,660.4,1.832]
[1751981564826,1.69817155,660.79,660.4,3.53056482]
[1751981565027,1.69817155,660.79,660.4,1.832]
[1751981565627,1.69817155,660.81,660.4,1.832]
[1751981566128,1.69817155,660.83,660.4,1.832]
[1751981567224,1.69817155,660.83,660.31,1.69856482]
[1751981568022,1.69817155,660.84,660.31,1.69856482]
[1751981568227,1.69817155,660.83,660.31,1.69856482]
[1751981568424,1.69817155,660.84,660.31,1.69856482]
[1751981569124,1.69817155,660.84,660.3,1.69856482]
[1751981569334,1.69817155,660.84,660.29,1.69856482]
[1751981570729,1.69817155,660.84,660.3,1.976]
[1751981570930,1.69817155,660.83,660.31,1.69856482]
[1751981572328,1.69817155,660.82,660.31,1.69856482]
[1751981572824,1.69817155,660.76,660.3,1.976]
[1751981574326,1.69817155,660.77,660.3,1.976]
[1751981575234,1.69817155,660.76,660.3,1.976]
[1751981575427,1.69817155,660.77,660.3,1.976]
[1751981575828,1.69817155,660.76,660.3,1.976]
[1751981576427,1.69817155,660.75,660.3,1.976]
[1751981576632,1.69817155,660.76,660.3,1.976]
[1751981577333,1.69817155,660.75,660.3,1.976]
[1751981578528,1.69817155,660.76,660.3,1.976]
[1751981579131,1.69817155,660.74,660.3,1.976]
[1751981582635,1.69817155,660.75,660.3,1.976]
[1751981585535,1.69817155,660.76,660.3,1.976]
[1751981585741,1.69817155,660.75,660.3,1.976]
[1751981588440,1.69817155,660.74,660.3,1.976]
[1751981588936,1.69817155,660.78,660.3,1.976]
[1751981590436,0.26347568,660.67,660.3,1.976]
[1751981590937,0.26347568,660.67,660.19,1.69856482]
[1751981591242,0.26347568,660.67,660.2,1.69856482]
[1751981591934,0.26347568,660.67,660.16,1.69856482]
[1751981592640,0.26347568,660.67,660.15,1.69856482]
[1751981594336,0.26347568,660.67,660.14,1.69856482]
[1751981594542,0.26347568,660.67,660.16,1.695]
[1751981598545,0.26347568,660.67,660.16,3.39356482]
[1751981600044,0.26347568,660.67,660.16,1.695]
[1751981600245,0.26347568,660.67,660.16,3.39356482]
[1751981600644,0.26347568,660.67,660.17,1.69856482]
[1751981601048,0.26347568,660.67,660.16,3.39356482]
[1751981603244,0.26347568,660.67,660.16,1.695]
[1751981604342,0.26347568,660.67,660.16,3.39356482]
[1751981604548,0.26347568,660.67,660.16,1.695]
[1751981631675,0.26347568,660.67,659.98,1.69856482]
[1751981633976,0.26347568,660.67,659.99,1.878]
[1751981636373,0.26347568,660.67,659.99,3.57656482]
[1751981636677,0.26347568,660.67,660.1,1.69856482]
[1751981636972,0.26347568,660.67,660.15,1.69856482]
[1751981637571,0.26347568,660.67,660.19,1.69856482]
[1751981639378,1.69817155,660.78,660.2,1.69856482]
[1751981639575,1.69817155,660.78,660.19,1.69856482]
[1751981639875,0.99117695,660.8,660.24,1.69856482]
[1751981640079,0.99117695,660.79,660.24,1.69856482]
[1751981640280,0.99117695,660.78,660.24,1.69856482]
[1751981640474,0.26345374,660.81,660.25,1.69856482]
[1751981640475,0.99117695,660.8,660.25,1.69856482]
[1751981640779,0.99117695,660.79,660.25,1.69856482]
[1751981640975,0.99148483,660.8,660.24,1.69856482]
[1751981641277,0.99148483,660.79,660.3,1.69856482]
[1751981641475,0.99148483,660.78,660.3,1.69856482]
[1751981641676,0.99148483,660.79,660.3,1.69856482]
[1751981641876,0.99148483,660.78,660.3,1.69856482]
[1751981642080,0.99148483,660.79,660.33,1.69856482]
[1751981642377,0.99148483,660.78,660.33,1.69856482]
[1751981642578,0.26345374,660.81,660.33,1.69856482]
[1751981642579,0.99148483,660.8,660.33,1.69856482]
[1751981642781,0.99148483,660.79,660.33,1.69856482]
[1751981642982,0.99148483,660.78,660.33,1.69856482]
[1751981643182,0.99148483,660.8,660.32,1.69856482]
[1751981643479,0.99148483,660.79,660.33,1.69856482]
[1751981643677,0.99148483,660.8,660.33,1.69856482]
[1751981643880,0.99148483,660.79,660.33,1.69856482]
[1751981644083,0.99148483,660.8,660.33,1.69856482]
[1751981644381,0.99148483,660.79,660.32,1.69856482]
[1751981644586,0.99148483,660.8,660.32,1.69856482]
[1751981644785,0.99148483,660.79,660.32,1.69856482]
[1751981644983,0.99148483,660.8,660.32,1.69856482]
[1751981645183,0.99148483,660.79,660.33,1.69856482]
[1751981645383,0.99148483,660.78,660.33,1.69856482]
[1751981645583,0.99148483,660.8,660.33,1.69856482]
[1751981645783,0.99148483,660.79,660.32,1.69856482]
[1751981646083,0.99148483,660.8,660.31,1.69856482]
[1751981646287,0.99148483,660.8,660.3,1.69856482]
[1751981646786,0.26345374,660.81,660.3,1.69856482]
[1751981646990,0.26345374,660.81,660.31,1.69856482]
[1751981647185,0.26345374,660.81,660.3,1.69856482]
[1751981647384,0.26345374,660.81,660.32,1.69856482]
[1751981648495,0.26345374,660.81,660.31,1.69856482]
[1751981649589,0.26345374,660.81,660.32,1.828]
[1751981662297,1.96162529,660.81,660.32,1.828]
[1751981662496,1.69817155,660.8,660.32,1.828]
[1751981664498,1.69817155,660.78,660.32,1.828]
[1751981668208,1.69817155,660.77,660.32,1.828]
[1751981668810,1.69817155,660.78,660.32,1.828]
[1751981669505,1.69817155,660.77,660.32,1.828]
[1751981674215,1.69817155,660.76,660.32,1.828]
[1751981675513,1.69817155,660.77,660.32,1.828]
[1751981677912,1.69817155,660.76,660.32,1.828]
[1751981679818,1.69817155,660.8,660.32,1.828]
[1751981684519,1.69817155,660.79,660.32,1.828]
[1751981689622,1.69817155,660.75,660.32,1.828]
[1751981692028,1.25412037,660.81,660.32,1.828]
[1751981692029,1.69817155,660.74,660.32,1.828]
[1751981692328,1.69817155,660.73,660.32,1.828]
[1751981693229,0.99066663,660.79,660.32,1.828]
[1751981693525,1.69889365,660.73,660.32,1.828]
[1751981693725,1.69889365,660.7,660.32,1.828]
[1751981695325,1.69889365,660.68,660.32,1.828]
[1751981698326,1.69889365,660.72,660.32,1.828]
[1751981700629,1.69889365,660.71,660.32,1.828]
[1751981701130,1.69889365,660.7,660.32,1.828]
[1751981701326,1.69889365,660.71,660.32,1.828]
[1751981703428,1.69889365,660.7,660.32,1.828]
[1751981705632,1.69889365,660.7,660.15,1.70026239]
[1751981706336,1.69889365,660.7,660.16,1.70026239]
[1751981707037,1.69889365,660.7,660.15,1.70026239]
[1751981707236,1.69889365,660.7,660.16,1.70026239]
[1751981708330,1.69889365,660.66,660.21,1.70026239]
[1751981708937,1.69889365,660.66,660.22,1.93]
[1751981709133,1.69889365,660.66,660.22,3.63026239]
[1751981710037,1.69889365,660.65,660.23,1.70026239]
[1751981710233,1.69889365,660.67,660.22,1.93]
[1751981710940,1.69889365,660.68,660.22,1.93]
[1751981715342,1.69889365,660.69,660.22,1.93]
[1751981716442,0.26345374,660.81,660.22,1.93]
[1751981716743,0.99066663,660.83,660.23,1.70026239]
[1751981716945,0.26345175,660.82,660.23,1.70026239]
[1751981717147,0.26345175,660.82,660.24,1.70026239]
[1751981717748,1.25411838,660.82,660.25,1.70026239]
[1751981717949,0.26345175,660.82,660.25,1.70026239]
[1751981718749,0.99066663,660.81,660.28,1.70026239]
[1751981719846,0.99066663,660.81,660.33,1.70026239]
[1751981720149,0.99066663,660.8,660.36,1.70026239]
[1751981720345,0.99066663,660.79,660.36,1.70026239]
[1751981720544,0.99066663,660.78,660.36,1.70026239]
[1751981720849,2.68956028,660.9,660.38,1.70026239]
[1751981721046,2.68956028,660.89,660.42,1.70026239]
[1751981721249,0.99066663,660.88,660.42,1.70026239]
[1751981721447,0.99066663,660.87,660.42,1.70026239]
[1751981721647,0.99066663,660.86,660.42,1.70026239]
[1751981721948,0.99066663,660.85,660.43,1.70026239]
[1751981722149,0.99066663,660.84,660.42,1.70026239]
[1751981722349,0.99066663,660.83,660.41,1.70026239]
[1751981722551,0.99066663,660.82,660.41,1.70026239]
[1751981722749,0.99066663,660.81,660.41,1.70026239]
[1751981722952,0.99066663,660.8,660.41,1.70026239]
[1751981723152,0.99066663,660.79,660.4,1.70026239]
[1751981723753,0.26342881,660.91,660.4,1.70026239]
[1751981724248,0.26342881,660.91,660.39,1.70026239]
[1751981726154,0.26342881,660.91,660.38,1.70026239]
[1751981728755,0.26342881,660.91,660.37,1.70026239]
[1751981729158,0.26342881,660.91,660.36,1.70026239]
[1751981729353,0.26342881,660.91,660.37,1.70026239]
[1751981730255,0.26342881,660.91,660.36,1.70026239]
[1751981732258,0.26342881,660.91,660.37,1.70026239]
[1751981732959,0.26342881,660.91,660.36,1.70026239]
[1751981733860,0.26342881,660.91,660.35,1.70026239]
[1751981734463,0.26342881,660.91,660.34,1.70026239]
[1751981734655,0.26342881,660.91,660.3,1.70026239]
[1751981734859,0.26342881,660.91,660.29,1.70026239]
[1751981735156,0.26342881,660.91,660.28,1.70026239]
[1751981735555,0.26342881,660.91,660.25,1.70026239]
[1751981738558,0.26342881,660.91,660.26,1.541]
[1751981743869,0.26342881,660.91,660.27,1.69621729]
[1751981744866,0.26342881,660.91,660.26,1.541]
[1751981744867,0.26342881,660.91,660.28,1.69621729]
[1751981745670,0.26342881,660.91,660.29,1.69621729]
[1751981747576,0.26342881,660.91,660.3,1.69621729]
[1751981750475,0.26342881,660.91,660.26,1.541]
[1751981750476,0.26342881,660.91,660.31,1.69621729]
[1751981752280,0.26342881,660.91,660.32,1.69621729]
[1751981753076,0.26342881,660.91,660.33,1.69621729]
[1751981754875,0.26342881,660.91,660.34,1.75]
[1751981760384,1.95823382,660.91,660.34,1.75]
[1751981761383,1.69480501,660.9,660.34,1.75]
[1751981764184,1.69480501,660.89,660.34,1.75]
[1751981765084,1.69480501,660.87,660.34,1.75]
[1751981765282,1.69480501,660.86,660.34,1.75]
[1751981765685,1.69480501,660.8,660.34,1.75]
[1751981766485,1.69480501,660.76,660.34,1.75]
[1751981767383,1.69480501,660.75,660.34,1.75]
[1751981768183,1.69480501,660.74,660.34,1.75]
[1751981768384,1.69480501,660.75,660.34,1.75]
[1751981769189,1.69480501,660.74,660.34,1.75]
[1751981769689,1.69480501,660.75,660.34,1.75]
[1751981770186,1.69480501,660.74,660.34,1.75]
[1751981771690,1.69480501,660.77,660.34,1.75]
[1751981772186,1.69480501,660.76,660.34,1.75]
[1751981772588,1.69480501,660.77,660.34,1.75]
[1751981773087,1.69480501,660.76,660.34,1.75]
[1751981773292,1.69480501,660.77,660.34,1.75]
[1751981775196,1.69480501,660.76,660.34,1.75]
[1751981775396,1.69480501,660.77,660.34,1.75]
[1751981775996,1.69480501,660.76,660.34,1.75]
[1751981777093,1.69480501,660.77,660.34,1.75]
[1751981778300,1.69480501,660.78,660.34,1.75]
[1751981779600,1.69480501,660.79,660.34,1.75]
[1751981781600,1.69480501,660.78,660.34,1.75]
[1751981783298,1.69480501,660.77,660.34,1.75]
[1751981785506,1.69480501,660.78,660.34,1.75]
[1751981786902,1.69480501,660.77,660.34,1.75]
[1751981789209,1.69480501,660.76,660.34,1.75]
[1751981789409,1.69480501,660.77,660.34,1.75]
[1751981789610,1.69480501,660.76,660.34,1.75]
[1751981792513,1.69480501,660.77,660.34,1.75]
[1751981792813,1.69480501,660.79,660.34,1.75]
[1751981793211,1.69480501,660.78,660.34,1.75]
[1751981793610,1.69480501,660.76,660.34,1.75]
[1751981798818,1.69480501,660.75,660.34,1.75]
[1751981799413,1.69480501,660.74,660.34,1.75]
[1751981800321,1.69480501,660.73,660.34,1.75]
[1751981801525,1.69480501,660.74,660.34,1.75]
[1751981804024,1.69480501,660.74,660.13,1.69621729]
[1751981804628,1.69480501,660.73,660.14,1.69621729]
[1751981805129,1.69480501,660.73,660.15,1.69621729]
[1751981805527,1.69480501,660.73,660.14,1.69621729]
[1751981806229,1.69480501,660.73,660.15,1.862]
[1751981807129,1.69480501,660.73,660.15,3.55821729]
[1751981807729,0.26350561,660.63,660.15,3.55821729]
[1751981811233,0.26350561,660.63,660.17,1.69621729]
[1751981812335,0.26350561,660.63,660.15,3.55821729]
[1751981813931,0.26350561,660.63,660.16,1.69621729]
[1751981815235,0.26350561,660.63,660.17,1.69621729]
[1751981815634,0.26350561,660.63,660.16,1.69621729]
[1751981816132,0.26350561,660.63,660.17,1.69621729]
[1751981816734,0.26350561,660.63,660.16,1.69621729]
[1751981817038,0.26350561,660.63,660.15,3.55821729]
[1751981817236,0.26350561,660.63,660.16,1.69621729]
[1751981817739,0.26350561,660.63,660.15,1.862]
[1751981819135,0.26350561,660.63,660.15,3.55821729]
[1751981819335,0.26350561,660.63,660.15,1.862]
[1751981820637,0.26350561,660.63,660.15,3.55821729]
[1751981821440,0.26350561,660.63,660.16,1.69621729]
[1751981821736,0.26350561,660.63,660.15,3.55821729]
[1751981821935,0.26350561,660.63,660.15,1.862]
[1751981824341,0.26350561,660.63,660.14,1.69621729]
[1751981825438,0.26350561,660.63,660.15,1.69621729]
[1751981825642,0.26350561,660.63,660.15,1.70198391]
[1751981826344,0.26350561,660.63,660.16,1.70198391]
[1751981826742,0.26350561,660.63,660.17,1.286]
[1751981827541,0.26350561,660.63,660.17,2.98798391]
[1751981828845,0.26350561,660.63,660.17,1.286]
[1751981829244,0.26350561,660.63,660.17,2.98798391]
[1751981831949,0.26350561,660.63,660.22,1.70198391]
[1751981837747,0.26350561,660.63,660.23,1.70198391]
[1751981837949,0.26350561,660.63,660.21,1.70198391]
[1751981839454,0.26350561,660.63,660.22,1.70198391]
[1751981840354,0.26350561,660.63,660.23,1.70198391]
[1751981840756,1.96183511,660.63,660.23,1.70198391]
[1751981840953,0.26350561,660.63,660.23,1.70198391]
[1751981841358,1.96183511,660.63,660.23,1.70198391]
[1751981841654,0.26350561,660.63,660.23,1.70198391]
[1751981842455,0.26350561,660.63,660.24,1.522]
[1751981842654,1.96183511,660.63,660.24,1.522]
[1751981842863,0.26350561,660.63,660.24,1.522]
[1751981843360,1.96183511,660.63,660.24,1.522]
[1751981844861,1.96183511,660.63,660.24,3.22398391]